bitfinex/quotes_SOLUSD_20250420
["timestamp","ask_amount","ask_price","bid_price","bid_amount"]
[1745151087900,82.4,136.45,136.41,0.063]
[1745151088228,18.64964886,136.47,136.42,267.1]
[1745151088229,82.4,136.44,136.42,267.1]
[1745151093398,82.4,136.43,136.42,267.1]
[1745151094406,101.04964886,136.43,136.42,267.1]
[1745151095715,82.4,136.43,136.42,267.1]
[1745151099117,18.64964886,136.47,136.42,267.1]
[1745151107633,44.64964886,136.5,136.42,273.4678]
[1745151108019,1.7235,136.52,136.42,273.4678]
[1745151108223,18.64964886,136.51,136.42,273.4678]
[1745151108407,26.0,136.51,136.43,1.526]
[1745151109131,82.4,136.5,136.43,1.526]
[1745151109708,82.4,136.49,136.43,1.526]
[1745151113841,82.4,136.48,136.43,1.526]
[1745151119714,82.4,136.47,136.43,1.526]
[1745151119930,82.4,136.46,136.43,1.526]
[1745151120127,82.4,136.45,136.42,267.1]
[1745151122040,18.64964886,136.5,136.42,267.1]
[1745151122041,82.4,136.49,136.42,267.1]
[1745151123158,82.4,136.49,136.43,6.1259]
[1745151123336,82.4,136.49,136.44,1.5169]
[1745151124844,82.4,136.49,136.46,26.0]
[1745151125044,81.9,136.48,136.47,16.08]
[1745151129740,81.9,136.48,136.47,19.72683171]
[1745151130834,81.963,136.52,136.47,19.72683171]
[1745151138337,81.963,136.52,136.48,250.9]
[1745151141945,0.063,136.52,136.48,256.9232]
[1745151142453,0.063,136.52,136.49,1.5946]
[1745151143061,0.063,136.52,136.5,18.64964886]
[1745151145369,0.063,136.54,136.53,26.0]
[1745151145560,0.063,136.54,136.53,42.04]
[1745151146262,0.063,136.56,136.53,42.04]
[1745151146645,0.063,136.56,136.54,18.64964886]
[1745151146852,0.063,136.56,136.54,20.19674886]
[1745151148060,0.063,136.56,136.54,25.82205797]
[1745151150368,81.963,136.63,136.56,18.64964886]
[1745151150540,0.063,136.63,136.59,26.0]
[1745151151668,81.963,136.63,136.59,26.0]
[1745151153243,81.963,136.63,136.55,6.6393]
[1745151153557,81.9,136.62,136.58,26.0]
[1745151155271,81.9,136.62,136.59,266.78]
[1745151161467,81.9,136.62,136.59,292.78]
[1745151163575,81.9,136.61,136.59,292.78]
[1745151169556,0.063,136.63,136.59,292.78]
[1745151170874,0.063,136.63,136.62,26.0]
[1745151177685,0.063,136.63,136.62,42.0]
[1745151185682,81.963,136.63,136.62,16.0]
[1745151186274,83.5613,136.63,136.62,16.0]
[1745151188185,81.963,136.63,136.62,16.0]
[1745151188373,0.063,136.63,136.62,42.0]
[1745151189175,0.063,136.63,136.62,34.64964886]
[1745151189375,0.063,136.63,136.62,16.0]
[1745151195803,0.063,136.63,136.62,42.0]
[1745151196096,0.063,136.63,136.62,16.0]
[1745151196687,0.063,136.63,136.62,36.29174886]
[1745151198013,0.063,136.63,136.62,21.29174886]
[1745151199197,0.063,136.63,136.62,20.29174886]
[1745151199499,0.063,136.63,136.62,21.29174886]
[1745151200603,0.063,136.63,136.62,20.29174886]
[1745151200799,0.063,136.63,136.62,21.29174886]
[1745151201097,0.063,136.63,136.62,20.29174886]
[1745151202304,0.063,136.63,136.62,21.29174886]
[1745151204980,0.03,136.69,136.62,21.29174886]
[1745151204981,0.03,136.69,136.67,26.0]
[1745151205186,0.03,136.73,136.71,26.0]
[1745151205605,0.03,136.73,136.71,41.98]
[1745151209783,0.03,136.73,136.68,250.56]
[1745151209988,8.0815,136.71,136.69,15.98]
[1745151210307,81.9,136.7,136.68,250.56]
[1745151210507,81.9,136.7,136.69,15.98]
[1745151210686,8.0815,136.71,136.69,15.98]
[1745151210882,26.0,136.65,136.57,11.47297126]
[1745151211095,82.4,136.64,136.58,15.98]
[1745151212384,108.4,136.67,136.59,18.64964886]
[1745151212800,108.4,136.67,136.58,19.71858191]
[1745151213187,82.4,136.66,136.58,19.71858191]
[1745151215004,1.5078,136.62,136.58,15.98]
[1745151215211,1.5078,136.62,136.59,250.54]
[1745151216816,82.4,136.65,136.59,250.54]
[1745151218714,82.4,136.65,136.6,15.98]
[1745151222203,82.4,136.65,136.6,41.98]
[1745151230925,82.4,136.64,136.6,41.98]
[1745151233924,82.4,136.64,136.6,15.98]
[1745151234237,82.4,136.63,136.6,15.98]
[1745151245547,83.9078,136.66,136.6,15.98]
[1745151251057,82.4,136.66,136.6,15.98]
[1745151253350,82.4,136.67,136.6,15.98]
[1745151253849,18.64964886,136.66,136.6,15.98]
[1745151254052,1.5965,136.65,136.6,15.98]
[1745151257545,82.4,136.64,136.6,15.98]
[1745151266075,82.4,136.64,136.61,250.66]
[1745151270974,82.4,136.64,136.62,15.94]
[1745151275156,82.4,136.67,136.62,15.94]
[1745151277079,82.4,136.67,136.63,250.66]
[1745151280891,82.4,136.66,136.63,250.66]
[1745151285891,82.4,136.66,136.64,15.94]
[1745151288389,88.4341,136.66,136.63,250.66]
[1745151288596,88.4341,136.66,136.64,15.94]
[1745151290084,82.4,136.65,136.63,250.66]
[1745151290297,82.4,136.65,136.64,15.94]
[1745151295584,82.4,136.69,136.64,15.94]
[1745151300605,82.4,136.69,136.64,41.94]
[1745151300801,82.4,136.71,136.67,26.0]
[1745151304814,82.4,136.71,136.64,15.94]
[1745151306918,82.4,136.7,136.64,15.94]
[1745151307311,82.4,136.7,136.65,15.9]
[1745151310317,82.4,136.69,136.65,15.9]
[1745151310820,82.4,136.69,136.66,250.58]
[1745151314036,18.64964886,136.68,136.66,250.58]
[1745151314329,82.4,136.67,136.66,250.58]
[1745151315001,82.4,136.67,136.66,266.48]
[1745151315002,101.04964886,136.67,136.66,266.48]
[1745151316020,18.64964886,136.67,136.66,266.48]
[1745151316211,20.20904886,136.67,136.66,266.48]
[1745151319305,20.20904886,136.67,136.66,250.58]
[1745151319504,20.20904886,136.67,136.66,266.48]
[1745151327834,101.04964885,136.65,136.64,250.68]
[1745151328034,18.64964886,136.65,136.64,266.56]
[1745151329945,44.64964886,136.65,136.64,266.56]
[1745151333340,18.64964886,136.65,136.64,266.56]
[1745151337940,18.64964886,136.68,136.64,266.56]
[1745151338943,18.64964886,136.7,136.64,266.56]
[1745151339153,18.64964886,136.68,136.64,266.56]
[1745151339332,18.64964886,136.66,136.64,266.56]
[1745151340854,18.64964886,136.68,136.64,266.56]
[1745151342749,18.64964886,136.66,136.64,266.56]
[1745151348557,82.4,136.65,136.64,266.56]
[1745151348757,18.64964886,136.65,136.64,266.56]
[1745151349159,18.64964886,136.65,136.64,250.68]
[1745151349353,18.64964886,136.65,136.64,266.56]
[1745151353255,18.64964886,136.65,136.64,250.68]
[1745151353561,18.64964886,136.65,136.64,266.54]
[1745151357445,101.04964886,136.63,136.62,250.72]
[1745151357645,101.04964886,136.63,136.62,266.58]
[1745151359350,18.64964886,136.62,136.61,250.72]
[1745151359551,18.64964886,136.62,136.61,266.58]
[1745151360464,18.64964886,136.59,136.58,0.063]
[1745151360663,26.0,136.63,136.58,15.923]
[1745151360852,18.64964886,136.62,136.58,15.923]
[1745151361171,44.64964886,136.59,136.58,0.063]
[1745151361357,22.3937281,136.58,136.56,0.063]
[1745151364044,23.3937281,136.58,136.56,0.063]
[1745151364274,22.3937281,136.58,136.56,0.063]
[1745151365172,22.3937281,136.58,136.57,15.86]
[1745151365767,23.3937281,136.58,136.57,15.86]
[1745151366071,22.3937281,136.58,136.57,15.86]
[1745151366574,48.3937281,136.58,136.57,15.86]
[1745151367076,44.64964886,136.58,136.57,15.86]
[1745151367377,44.64964886,136.58,136.57,15.88]
[1745151368870,82.4,136.56,136.5,2.86562076]
[1745151369069,101.04964886,136.55,136.5,2.86562076]
[1745151370569,82.4,136.55,136.5,2.86562076]
[1745151371069,18.64964886,136.59,136.51,1.5901]
[1745151371258,82.4,136.58,136.51,1.5901]
[1745151374789,82.4,136.57,136.51,1.5901]
[1745151375293,82.4,136.57,136.52,266.7]
[1745151375788,82.4,136.6,136.52,266.7]
[1745151378474,18.64964886,136.59,136.52,266.7]
[1745151379485,18.64964886,136.57,136.52,266.7]
[1745151382278,82.4,136.58,136.52,266.7]
[1745151383593,82.4,136.57,136.52,266.7]
[1745151389894,82.4,136.6,136.55,26.0]
[1745151390100,82.4,136.59,136.55,26.0]
[1745151390293,82.4,136.59,136.52,266.7]
[1745151390494,82.4,136.59,136.55,26.0]
[1745151392088,82.4,136.59,136.56,17.3853]
[1745151392290,82.4,136.62,136.56,17.3853]
[1745151392500,82.4,136.61,136.56,17.3853]
[1745151396901,82.4,136.61,136.57,250.76]
[1745151397096,18.64964886,136.59,136.58,15.84]
[1745151397299,7.7577,136.61,136.58,15.84]
[1745151398305,26.40734886,136.61,136.58,15.84]
[1745151402315,26.40734886,136.61,136.59,250.78]
[1745151406819,18.64964886,136.61,136.59,250.78]
[1745151406995,82.4,136.6,136.59,250.78]
[1745151410025,101.04964886,136.6,136.59,250.78]
[1745151411714,82.4,136.63,136.59,250.78]
[1745151411918,82.4,136.62,136.59,250.78]
[1745151412813,101.04964886,136.61,136.59,250.78]
[1745151414814,101.04964886,136.61,136.6,15.82]
[1745151415833,18.64964886,136.63,136.6,15.82]
[1745151420620,82.4,136.62,136.6,15.82]
[1745151424842,101.04964886,136.61,136.59,250.78]
[1745151425016,101.04964886,136.61,136.6,15.82]
[1745151425540,18.64964886,136.62,136.6,15.82]
[1745151432946,44.64964886,136.6,136.59,250.78]
[1745151433121,44.64964886,136.6,136.59,266.6]
[1745151448969,18.64964886,136.59,136.5,1.6304]
[1745151449270,18.64964886,136.55,136.54,250.84]
[1745151450364,18.64964886,136.55,136.54,266.64]
[1745151453061,1.6444,136.59,136.54,266.64]
[1745151453272,18.64964886,136.57,136.54,266.64]
[1745151454066,18.64964886,136.61,136.54,266.64]
[1745151454371,1.03,136.64,136.55,1.5058]
[1745151454572,26.0,136.63,136.55,1.5058]
[1745151454866,26.0,136.59,136.55,1.5058]
[1745151455065,0.03,136.64,136.55,1.5058]
[1745151455376,18.64964886,136.61,136.55,1.5058]
[1745151456978,26.0,136.58,136.55,1.5058]
[1745151457280,82.4,136.57,136.54,266.64]
[1745151458777,82.4,136.57,136.54,250.84]
[1745151458980,82.4,136.57,136.55,15.8]
[1745151460683,82.4,136.57,136.56,15.8]
[1745151468792,82.4,136.57,136.56,266.62]
[1745151473086,82.4,136.6,136.56,266.62]
[1745151473587,82.4,136.62,136.56,266.62]
[1745151473790,82.4,136.62,136.57,1.5652]
[1745151482014,82.4,136.62,136.56,266.62]
[1745151482508,18.64964886,136.61,136.56,266.62]
[1745151483090,18.64964886,136.59,136.56,266.62]
[1745151483290,82.4,136.58,136.56,266.62]
[1745151488620,101.04964886,136.58,136.57,15.78]
[1745151491141,82.4,136.58,136.57,15.78]
[1745151492126,82.4,136.6,136.57,15.78]
[1745151494330,82.4,136.62,136.57,15.78]
[1745151498354,0.03,136.63,136.57,22.1781]
[1745151503616,82.43,136.63,136.57,6.3981]
[1745151503821,18.64964886,136.62,136.58,15.76]
[1745151506839,82.4,136.61,136.58,15.76]
[1745151519261,82.4,136.61,136.59,250.76]
[1745151525263,101.04964886,136.6,136.59,250.76]
[1745151526650,46.30734886,136.6,136.59,266.5]
[1745151535077,0.03,136.63,136.59,266.5]
[1745151536162,0.03,136.64,136.62,26.0]
[1745151536373,0.03,136.64,136.63,15.72]
[1745151537775,0.03,136.64,136.59,250.76]
[1745151537978,18.67964886,136.64,136.6,15.72]
[1745151538974,0.03,136.64,136.6,15.72]
[1745151539183,18.67964886,136.64,136.6,15.72]
[1745151547884,82.4,136.63,136.6,15.72]
[1745151558781,82.4,136.63,136.61,250.72]
[1745151559606,0.03,136.64,136.61,250.72]
[1745151568321,0.03,136.64,136.62,15.7]
[1745151570315,18.67964886,136.64,136.62,15.7]
[1745151573122,18.67964886,136.64,136.63,250.7]
[1745151574009,20.29094886,136.64,136.63,250.7]
[1745151577706,46.29094886,136.64,136.63,250.7]
[1745151588236,44.67964886,136.64,136.63,250.7]
[1745151588441,0.03,136.64,136.63,250.7]
[1745151602742,0.03,136.64,136.63,266.38]
[1745151608134,0.03,136.64,136.63,250.7]
[1745151608439,19.67964886,136.64,136.63,266.38]
[1745151609027,26.33544886,136.64,136.63,250.7]
[1745151609236,26.33544886,136.64,136.63,266.38]
[1745151610535,18.64964886,136.59,136.58,250.74]
[1745151610740,18.64964886,136.59,136.58,266.42]
[1745151626567,26.0,136.6,136.58,266.42]
[1745151626742,18.64964886,136.61,136.58,266.42]
[1745151629866,82.4,136.6,136.58,266.42]
[1745151630163,18.64964886,136.59,136.58,266.42]
[1745151630369,82.4,136.6,136.58,266.42]
[1745151633776,18.64964886,136.59,136.58,266.42]
[1745151635859,101.04964886,136.59,136.58,266.42]
[1745151648501,18.64964886,136.6,136.58,266.42]
[1745151650182,82.4,136.61,136.58,266.42]
[1745151653567,18.64964886,136.6,136.58,266.42]
[1745151658799,127.04964886,136.59,136.58,250.74]
[1745151658991,127.04964886,136.59,136.58,266.4]
[1745151662275,44.64964886,136.59,136.58,266.4]
[1745151667887,18.64964886,136.59,136.58,266.4]
[1745151670104,44.64964886,136.59,136.58,266.4]
[1745151670713,26.0,136.59,136.58,266.4]
[1745151670916,1.611,136.64,136.58,266.4]
[1745151671085,18.64964886,136.63,136.58,266.4]
[1745151671486,44.64964886,136.63,136.58,266.4]
[1745151673213,82.4,136.62,136.58,266.4]
[1745151685636,26.03,136.64,136.58,266.4]
[1745151691534,108.43,136.64,136.58,266.4]
[1745151691728,0.03,136.64,136.59,1.5202]
[1745151693436,0.03,136.64,136.6,6.6591]
[1745151693637,0.03,136.64,136.6,32.6591]
[1745151698945,0.03,136.64,136.6,6.6591]
[1745151699135,0.03,136.64,136.61,15.62]
[1745151699642,82.4,136.63,136.59,1.5202]
[1745151699823,101.04964886,136.63,136.62,15.62]
[1745151701340,82.4,136.63,136.62,15.62]
[1745151701733,0.03,136.64,136.62,15.62]
[1745151704741,0.03,136.64,136.61,1.525]
[1745151704956,0.03,136.64,136.62,15.62]
[1745151708137,0.03,136.64,136.63,250.7]
[1745151714361,0.03,136.64,136.63,266.32]
[1745151719165,26.03,136.64,136.63,266.32]
[1745151719349,44.67964886,136.64,136.63,266.32]
[1745151719540,127.07964886,136.64,136.63,266.32]
[1745151721659,101.07964886,136.64,136.63,266.32]
[1745151723587,82.43,136.64,136.63,266.32]
[1745151723749,0.03,136.64,136.63,266.32]
[1745151726783,44.67964886,136.64,136.63,266.32]
[1745151731682,18.64964886,136.63,136.57,1.588]
[1745151731874,101.04964886,136.63,136.58,266.32]
[1745151733284,82.4,136.63,136.58,266.32]
[1745151737294,0.03,136.64,136.58,266.32]
[1745151744078,0.03,136.64,136.59,6.0222]
[1745151745494,0.03,136.64,136.59,32.0222]
[1745151746079,0.03,136.64,136.6,1.6386]
[1745151747106,0.03,136.64,136.62,26.0]
[1745151747303,0.03,136.64,136.63,15.6]
[1745151748007,0.03,136.64,136.63,23.2608]
[1745151748214,0.03,136.66,136.65,26.0]
[1745151748393,0.03,136.68,136.65,27.46272611]
[1745151748704,0.03,136.68,136.65,31.82573246]
[1745151749274,0.03,136.68,136.65,35.39816021]
[1745151750794,0.03,136.68,136.63,104.01815045]
[1745151750998,0.03,136.68,136.66,26.0]
[1745151753995,0.03,136.68,136.67,26.30844886]
[1745151754303,0.03,136.73,136.67,27.77086479]
[1745151754495,0.03,136.73,136.67,88.41615045]
[1745151755197,0.03,136.73,136.69,18.64964886]
[1745151755885,0.03,136.73,136.68,266.16]
[1745151756194,0.03,136.73,136.69,26.0]
[1745151760403,0.03,136.73,136.68,266.16]
[1745151764907,0.03,136.73,136.68,272.194]
[1745151767206,0.03,136.75,136.72,18.64964886]
[1745151767512,0.03,136.76,136.73,15.56]
[1745151773214,0.03,136.76,136.73,41.56]
[1745151775610,0.03,136.76,136.73,15.56]
[1745151776315,18.67964886,136.76,136.68,312.70770159]
[1745151776504,101.07964886,136.76,136.68,250.6]
[1745151776703,26.0,136.71,136.69,15.56]
[1745151777017,46.18314886,136.7,136.69,15.56]
[1745151778112,27.5335,136.7,136.69,15.56]
[1745151780806,46.18314886,136.7,136.69,15.56]
[1745151784026,1.5335,136.7,136.69,15.56]
[1745151784528,18.64964886,136.71,136.69,15.56]
[1745151786621,26.0,136.72,136.69,15.56]
[1745151788820,18.64964886,136.71,136.69,15.56]
[1745151790422,82.4,136.73,136.69,15.56]
[1745151793428,26.0,136.74,136.69,15.56]
[1745151810546,26.0,136.74,136.7,250.54]
[1745151811453,82.4,136.75,136.7,250.54]
[1745151811624,0.03,136.76,136.7,250.54]
[1745151811947,0.03,136.76,136.71,18.64964886]
[1745151815948,0.03,136.76,136.7,258.0544]
[1745151818347,0.03,136.76,136.71,18.64964886]
[1745151823458,0.03,136.76,136.71,44.64964886]
[1745151825136,0.03,136.76,136.71,26.0]
[1745151831364,0.03,136.76,136.72,15.52]
[1745151838161,0.03,136.76,136.73,18.64964886]
[1745151838339,0.03,136.76,136.72,77.62770159]
[1745151838844,0.03,136.76,136.72,15.52]
[1745151839045,1.5897237,136.77,136.72,15.52]
[1745151839755,1.0897237,136.77,136.72,15.52]
[1745151840173,0.5897237,136.77,136.72,15.52]
[1745151850566,0.5897237,136.77,136.73,250.44]
[1745151864987,0.5897237,136.77,136.74,15.5]
[1745151868182,0.5897237,136.77,136.74,19.21168366]
[1745151871194,0.5897237,136.77,136.74,25.08444618]
[1745151871799,0.5897237,136.77,136.74,21.37276252]
[1745151872006,0.5897237,136.77,136.74,15.5]
[1745151873912,0.5897237,136.77,136.74,19.21871578]
[1745151874109,0.5897237,136.77,136.74,15.5]
[1745151890428,0.5897237,136.77,136.75,250.42]
[1745151895201,0.5897237,136.77,136.76,15.48]
[1745151900942,0.5897237,136.77,136.75,250.42]
[1745151900943,82.4,136.76,136.75,250.42]
[1745151901116,101.04964886,136.76,136.75,265.9]
[1745151905642,18.64964886,136.76,136.75,265.9]
[1745151917928,20.19114886,136.76,136.75,265.9]
[1745151921356,44.64964886,136.73,136.72,250.52]
[1745151921532,44.64964886,136.73,136.72,266.0]
[1745151926351,18.64964886,136.7,136.69,250.603]
[1745151926548,26.0,136.7,136.69,266.083]
[1745151929447,44.64964886,136.7,136.69,266.083]
[1745151937358,44.64964886,136.7,136.69,266.063]
[1745151941433,52.38394886,136.7,136.69,250.603]
[1745151941741,52.38394886,136.7,136.69,266.063]
[1745151941937,126.92364886,136.68,136.67,0.063]
[1745151942143,126.92364886,136.68,136.67,15.523]
[1745151943365,44.64964886,136.68,136.67,15.523]
[1745151944156,7.7343,136.74,136.67,15.523]
[1745151944363,1.6652,136.74,136.67,15.523]
[1745151944859,26.0,136.7,136.67,15.523]
[1745151945061,18.64964886,136.73,136.67,15.523]
[1745151945455,26.0,136.7,136.67,15.523]
[1745151949472,18.64964886,136.69,136.67,15.523]
[1745151949669,82.4,136.68,136.67,15.523]
[1745151951066,18.64964886,136.68,136.67,15.523]
[1745151952072,20.24804886,136.69,136.67,15.523]
[1745151955481,127.04964886,136.68,136.67,15.523]
[1745151959081,18.64964886,136.68,136.67,15.523]
[1745151959386,26.0,136.7,136.67,15.523]
[1745151959885,18.64964886,136.71,136.67,15.523]
[1745151960261,18.64964886,136.75,136.67,17.1613]
[1745151960464,26.0,136.72,136.67,17.1613]
[1745151962574,18.64964886,136.71,136.67,15.523]
[1745151963261,101.04964886,136.71,136.67,15.523]
[1745151963684,82.4,136.7,136.67,15.523]
[1745151965690,82.4,136.7,136.67,22.1147]
[1745151969073,82.4,136.7,136.68,250.6]
[1745151973588,82.4,136.73,136.68,250.6]
[1745151976891,82.4,136.73,136.69,1.5427]
[1745151977674,108.4,136.76,136.69,1.5427]
[1745151977878,82.4,136.76,136.69,1.5427]
[1745151978076,0.5897237,136.77,136.69,1.5427]
[1745151981906,82.4,136.76,136.71,26.0]
[1745151982106,82.4,136.76,136.72,15.44]
[1745151982292,82.4,136.75,136.72,15.44]
[1745151988992,82.4,136.75,136.73,250.5]
[1745151993820,82.4,136.74,136.73,250.5]
[1745151994003,82.4,136.74,136.73,265.94]
[1745151999406,82.4,136.76,136.73,265.94]
[1745152017112,0.5897237,136.77,136.73,265.94]
[1745152019033,0.5897237,136.77,136.74,26.0]
[1745152023950,0.5897237,136.77,136.75,15.42]
[1745152028750,0.5897237,136.77,136.76,250.4]
[1745152050578,19.23937256,136.77,136.76,250.4]
[1745152054371,19.23937256,136.77,136.76,250.4]
[1745152057481,82.4,136.75,136.67,31.80485751]
[1745152057776,82.4,136.74,136.68,265.84]
[1745152059154,82.4,136.74,136.69,6.5396]
[1745152060087,82.4,136.76,136.7,20.23874886]
[1745152063980,0.5897237,136.77,136.7,21.23874886]
[1745152066187,0.5897237,136.77,136.7,20.23874886]
[1745152066382,0.5897237,136.77,136.7,21.23874886]
[1745152067391,0.5897237,136.77,136.73,26.0]
[1745152067690,0.5897237,136.77,136.74,15.38]
[1745152069892,0.5897237,136.77,136.75,250.42]
[1745152074198,0.5897237,136.77,136.76,18.64964886]
[1745152074501,0.03,136.81,136.78,26.0]
[1745152074792,0.03,136.81,136.79,15.38]
[1745152080678,82.4,136.8,136.75,250.42]
[1745152080886,82.4,136.79,136.76,15.38]
[1745152084303,82.4,136.78,136.76,15.38]
[1745152087508,6.3906,136.78,136.77,15.38]
[1745152093712,1.5576,136.79,136.77,15.38]
[1745152095710,1.5576,136.79,136.78,250.42]
[1745152098108,6.1926,136.81,136.78,250.42]
[1745152098798,0.03,136.81,136.78,250.42]
[1745152105313,0.03,136.81,136.79,15.38]
[1745152110327,0.03,136.81,136.8,250.4]
[1745152116222,26.03,136.81,136.8,250.4]
[1745152119931,26.03,136.81,136.8,265.78]
[1745152120834,0.03,136.81,136.8,265.78]
[1745152148575,0.03,136.81,136.8,250.4]
[1745152148777,18.64964886,136.76,136.73,0.063]
[1745152149073,18.64964886,136.76,136.74,15.36]
[1745152150278,26.0,136.78,136.74,15.36]
[1745152150580,26.0,136.76,136.74,15.36]
[1745152152758,82.4,136.75,136.74,15.36]
[1745152154665,26.0,136.78,136.74,15.36]
[1745152154865,7.9197,136.81,136.74,15.36]
[1745152155163,26.0,136.78,136.74,15.36]
[1745152155358,7.9197,136.81,136.74,15.36]
[1745152155778,33.9197,136.81,136.74,15.36]
[1745152158587,33.9197,136.81,136.75,250.44]
[1745152160962,82.4,136.8,136.75,250.44]
[1745152166599,82.4,136.79,136.75,250.44]
[1745152168600,0.03,136.81,136.75,258.6303]
[1745152175902,0.03,136.81,136.76,18.64964886]
[1745152176274,82.43,136.81,136.76,18.64964886]
[1745152176596,82.43,136.81,136.75,258.6303]
[1745152178480,82.43,136.81,136.76,15.34]
[1745152181402,82.4,136.8,136.76,15.34]
[1745152183292,82.4,136.8,136.76,33.98964886]
[1745152184106,82.4,136.8,136.76,70.77099796]
[1745152189513,82.4,136.8,136.77,18.64964886]
[1745152189820,0.03,136.81,136.77,18.64964886]
[1745152191121,0.03,136.81,136.77,44.64964886]
[1745152193419,0.03,136.81,136.79,26.0]
[1745152196021,0.03,136.81,136.77,18.64964886]
[1745152196219,0.03,136.81,136.8,15.32]
[1745152198623,0.03,136.81,136.8,265.64]
[1745152206618,1e-08,136.82,136.8,302.468915]
[1745152207747,1e-08,136.82,136.81,51.45869078]
[1745152209836,1e-08,136.82,136.81,15.32]
[1745152211040,26.00000001,136.82,136.81,15.32]
[1745152211515,26.00000001,136.82,136.81,15.3]
[1745152211718,44.64964887,136.82,136.81,15.3]
[1745152212210,82.39999999,136.8,136.73,0.063]
[1745152212412,84.03759999,136.79,136.74,265.62]
[1745152212625,82.39999999,136.78,136.74,265.62]
[1745152212817,82.39999999,136.77,136.74,265.62]
[1745152213027,82.39999999,136.76,136.74,265.62]
[1745152216526,82.39999999,136.75,136.74,265.62]
[1745152216944,26.0,136.76,136.74,265.62]
[1745152217617,26.0,136.78,136.74,265.62]
[1745152217836,27.5121,136.75,136.74,265.62]
[1745152218134,27.5121,136.75,136.74,265.64]
[1745152222344,82.337,136.73,136.71,0.063]
[1745152222641,82.337,136.72,136.71,0.063]
[1745152222841,82.337,136.72,136.71,265.843]
[1745152227736,32.1176,136.74,136.71,265.843]
[1745152231225,82.4,136.73,136.71,265.843]
[1745152234639,82.4,136.72,136.71,265.843]
[1745152235636,108.4,136.72,136.71,265.843]
[1745152238353,82.4,136.72,136.71,265.843]
[1745152239947,26.0,136.72,136.71,265.843]
[1745152248951,26.0,136.74,136.71,265.843]
[1745152249155,0.03,136.8,136.71,265.843]
[1745152249653,26.0,136.75,136.71,265.843]
[1745152249861,82.4,136.74,136.71,265.843]
[1745152250759,82.4,136.73,136.71,265.843]
[1745152254663,82.4,136.72,136.71,265.843]
[1745152254865,44.64964886,136.74,136.71,265.843]
[1745152256153,82.274,136.7,136.69,0.063]
[1745152256360,26.0,136.7,136.69,265.923]
[1745152260163,44.64964886,136.7,136.69,265.923]
[1745152260548,26.0,136.7,136.69,265.923]
[1745152262945,44.64964886,136.7,136.69,265.923]
[1745152263346,82.211,136.67,136.66,0.063]